Workbook

Sheet Tractor
C1: Fill in the tractor information. The green cells are input cells. Brown cells are calculated cells.
C2: To use this model you need tractor engine or pto power curve.
C3: You can find more information at the Instructions sheet
B4: Tractor
B5: Model | C5: CASE IH CX 90 DIESEL | E5: Fuel dens. | F5: 0.84 | G5: kg/l
B6: Mass | C6: 3705 | D6: kg | E6: Nom. speed | F6: =+D14 -> 2200 | G6: 1/min
B7: Rear wheel radius | C7: 0.744 | D7: m
B10: Engine
B11: Point | C11: Torque Nm | D11: Eng speed 1/min | E11: Fuel cons. l/h | G11: Fuel cons. kg/h | H11: Spec. cons. g/kWh | I11: Power kW
B12: Mmax | C12: 319 | D12: 1400 | E12: 14.1 | G12: =+E12*$F$5 -> 11.844 | H12: =+G12*1000/I12 -> 253.2509377 | I12: =+C12*(D12*2*PI()/60)/1000 -> 46.76784264 | K12: Maximum torque
B13: Pmax/P80% | C13: 289 | D13: 2000 | E13: 18 | G13: 15.12 | H13: =+G13*1000/I13 -> 249.8016685 | I13: 60.52801846 | K13: A point between the nomimal power and maximum torque or maximum power point
B14: Pnim | C14: 258 | D14: 2200 | E14: 18.8 | G14: 15.792 | H14: =+G14*1000/I14 -> 265.6844462 | I14: 59.43893301 | K14: Nominal power
B15: P85 | C15: 219 | D15: 2272 | E15: 17.5 | G15: 14.7 | H15: =+G15*1000/I15 -> 282.1215589 | I15: 52.10519912 | K15: Part load, for example 85%
B16: P25 | C16: 54 | D16: 2336 | E16: 9.6 | G16: 8.064 | H16: =+G16*1000/I16 -> 610.457316 | I16: 13.20976879 | K16: Part load, for example 25%
B17: P0 | C17: 0 | D17: 2361 | E17: 6 | G17: 5.04 | I17: 0 | K17: High idle
L19: Check that the curves run smoothly
B20: Transmission | C20: Gear | D20: Nom. speed. km/h | E20: Ratio
C21: 1 | D21: 2.1 | E21: =+Tractor!$C$7*Tractor!$F$6*PI()/30/D21*3.6 -> 293.8376489 | F21: In column "Gear" you can give the gear nomination. In nominal speed column give the nominal speed of the gear. With CVT transmissions you can give evenly spread speeds in the normal working range. Altogehter you can have 12 gears. .
C22: 2 | D22: 2.6 | E22: =+Tractor!$C$7*Tractor!$F$6*PI()/30/D22*3.6 -> 237.3304087
C23: 3 | D23: 3.7 | E23: =+Tractor!$C$7*Tractor!$F$6*PI()/30/D23*3.6 -> 166.7727196
C24: 4 | D24: 4.5 | E24: =+Tractor!$C$7*Tractor!$F$6*PI()/30/D24*3.6 -> 137.1242361
C25: 5 | D25: 5.5 | E25: =+Tractor!$C$7*Tractor!$F$6*PI()/30/D25*3.6 -> 112.1925568
C26: 6 | D26: 6.7 | E26: =+Tractor!$C$7*Tractor!$F$6*PI()/30/D26*3.6 -> 92.09836756
C27: 7 | D27: 8 | E27: =+Tractor!$C$7*Tractor!$F$6*PI()/30/D27*3.6 -> 77.13238283
C28: 8 | D28: 8.7 | E28: =+Tractor!$C$7*Tractor!$F$6*PI()/30/D28*3.6 -> 70.92632904
C29: 9 | D29: 9.6 | E29: =+Tractor!$C$7*Tractor!$F$6*PI()/30/D29*3.6 -> 64.27698569
C30: 10 | D30: 10.5 | E30: =+Tractor!$C$7*Tractor!$F$6*PI()/30/D30*3.6 -> 58.76752978
C31: 11 | D31: 14 | E31: =+Tractor!$C$7*Tractor!$F$6*PI()/30/D31*3.6 -> 44.07564733
C32: 12 | D32: 16.9 | E32: =+Tractor!$C$7*Tractor!$F$6*PI()/30/D32*3.6 -> 36.51237057

Sheet Ploughing
B2: Mounted reversible plough
B5: Soil condition | C5: Share width | D5: Number of furrows | E5: Working depth cm | F5: Soil traficability | G5: Slope ˚ | H5: Extra ballast kg | I5: Weight transfer | J5: Working width | M5: Tuloksia
D6: =+D8 -> 3 | E6: =+E8 -> 20 | G6: =+G8 -> 0 | H6: =+H8 -> 501 | J6: =+O10 -> 1.0668 | K6: m
M7: f | O7: =+IF(F12=1,0.15,IF(F12=2,0.1,0.07)) -> 0.1
B8: Hard | C8: 12 | D8: 3 | E8: 20 | F8: Poor | G8: 0 | H8: 501 | I8: No | M8: Tr kulkuvastus | O8: =+Tractor!C6*9.81/1000*O7 -> 3.634605 | P8: kN
B9: Moderate | C9: 14 | F9: Normal | I9: Weak | M9: Mäkivastus | O9: =+(Tractor!C6+O11)*9.81/1000*SIN(RADIANS(G8)) -> 0 | P9: kN
B10: Light | C10: 16 | F10: Good | I10: Good | M10: Työleveys | O10: =+(10+C12*2)*0.0254*D8 -> 1.0668 | P10: m
C11: 18 | I11: Excellent | M11: Auran massa | O11: =+D8*350 -> 1050 | P11: kg
B12: 2 | C12: 2 | F12: 2 | I12: 3
B14: Gear | C14: Nom. speed. km/h | D14: Draft kN | E14: Wheel slip % | F14: Engine 1/min | G14: Consumption l/h | H14: Driving speed km/h | I14: Work rate ha/h | J14: Cons. l/ha | N14: Välityssuhde | O14: Kehävoima | P14: Akselimomentti | Q14: Moottorimom. | R14: PA g/kWh | S14: P kW | T14: μ | U14: Kehän. km/h
A15: =+IF(F15=0,"Engine stopped"," ") ->  | B15: =+Tractor!C21 -> 1 | C15: =+Tractor!D21 -> 2.1 | D15: =+kynto($B$12,C15,$O$10,$E$8/100) -> 9.356305392 | E15: =+IF(AND(F15>0,Luisto($F$12,T15)<100),Luisto($F$12,T15),"") -> 8.210333066 | F15: =+Piste(Tractor!$C$12:$E$17,Q15,1) -> 2345.771703 | G15: =IF(F15>1000,Piste(Tractor!$C$12:$E$16,Q15,2),"") -> 8.192874732 | H15: =+IF(AND(E15<100,F15>0),U15*(1-E15/100),"") -> 2.055304396 | I15: =+IF(F15>0,H15*$O$10/10,"") -> 0.2192598729 | J15: =+IF(F15>0,G15/I15,"") -> 37.36604707 | K15: =+IF(ISNUMBER(E15),LOOKUP(E15,$W$15:$W$18,$X$15:$X$18),"") -> Slip OK! | N15: =+Tractor!E21 -> 293.8376489 | O15: =+D15+$O$8+$O$9 -> 12.99091039 | P15: =+O15*Tractor!$C$7 -> 9.665237332 | Q15: =+P15/N15*1000 -> 32.89312098 | R15: =+IF(F15>0,G15*Tractor!$F$5*1000/S15,0) -> 851.7186504 | S15: =+Q15*(F15*2*PI()/60)/1000 -> 8.080150378 | T15: =+IF(F15>0,O15/((Tractor!$C$6+$H$8+($I$12-1)*0.15*$O$11)*9.81/1000),0) -> 0.2929112638 | U15: =+F15/N15*2*PI()/60*Tractor!$C$7*3.6 -> 2.239145717 | W15: 0 | X15: Slip OK!
A16: =+IF(F16=0,"Engine stopped"," ") ->  | B16: =+Tractor!C22 -> 2 | C16: =+Tractor!D22 -> 2.6 | D16: 9.566891712 | E16: =+IF(AND(F16>0,Luisto($F$12,T16)<100),Luisto($F$12,T16),"") -> 8.464267703 | F16: =+Piste(Tractor!$C$12:$E$17,Q16,1) -> 2341.840288 | G16: =IF(F16>1000,Piste(Tractor!$C$12:$E$16,Q16,2),"") -> 8.75899848 | H16: =+IF(AND(E16<100,F16>0),U16*(1-E16/100),"") -> 2.533369868 | I16: =+IF(F16>0,H16*$O$10/10,"") -> 0.2702598975 | J16: =+IF(F16>0,G16/I16,"") -> 32.40953823 | K16: =+IF(ISNUMBER(E16),LOOKUP(E16,$W$15:$W$18,$X$15:$X$18),"") -> Slip OK! | N16: =+Tractor!E22 -> 237.3304087 | O16: 13.20149671 | P16: =+O16*Tractor!$C$7 -> 9.821913554 | Q16: 41.3849772 | R16: =+IF(F16>0,G16*Tractor!$F$5*1000/S16,0) -> 724.9451114 | S16: 10.14912523 | T16: =+IF(F16>0,O16/((Tractor!$C$6+$H$8+($I$12-1)*0.15*$O$11)*9.81/1000),0) -> 0.297659438 | U16: =+F16/N16*2*PI()/60*Tractor!$C$7*3.6 -> 2.767629432 | W16: 20 | X16: Rut deformation danger!
B17: =+Tractor!C23 -> 3 | C17: =+Tractor!D23 -> 3.7 | D17: 10.18789733 | E17: =+IF(AND(F17>0,Luisto($F$12,T17)<100),Luisto($F$12,T17),"") -> 9.259760038 | F17: =+Piste(Tractor!$C$12:$E$17,Q17,1) -> 2333.027137 | G17: =IF(F17>1000,Piste(Tractor!$C$12:$E$16,Q17,2),"") -> 9.966962767 | H17: 3.560399711 | I17: 0.3798234411 | J17: 26.24104173 | K17: Slip OK! | N17: =+Tractor!E23 -> 166.7727196 | O17: 13.82250233 | P17: =+O17*Tractor!$C$7 -> 10.28394173 | Q17: 61.66441223 | R17: =+IF(F17>0,G17*Tractor!$F$5*1000/S17,0) -> 555.7239543 | S17: 15.06548109 | T17: =+IF(F17>0,O17/((Tractor!$C$6+$H$8+($I$12-1)*0.15*$O$11)*9.81/1000),0) -> 0.3116615006 | U17: =+F17/N17*2*PI()/60*Tractor!$C$7*3.6 -> 3.923727458 | W17: 30 | X17: High Slip!
B18: =+Tractor!C24 -> 4 | C18: =+Tractor!D24 -> 4.5 | D18: 10.7757468 | E18: =+IF(AND(F18>0,Luisto($F$12,T18)<100),Luisto($F$12,T18),"") -> 10.08154913 | F18: =+Piste(Tractor!$C$12:$E$17,Q18,1) -> 2326.618463 | G18: =IF(F18>1000,Piste(Tractor!$C$12:$E$16,Q18,2),"") -> 10.75803345 | H18: 4.279212163 | I18: 0.4565063536 | J18: 23.56601034 | K18: Slip OK! | N18: =+Tractor!E24 -> 137.1242361 | O18: 14.4103518 | P18: =+O18*Tractor!$C$7 -> 10.72130174 | Q18: 78.18677457 | R18: =+IF(F18>0,G18*Tractor!$F$5*1000/S18,0) -> 474.3786017 | S18: 19.04965373 | T18: =+IF(F18>0,O18/((Tractor!$C$6+$H$8+($I$12-1)*0.15*$O$11)*9.81/1000),0) -> 0.3249159782 | U18: =+F18/N18*2*PI()/60*Tractor!$C$7*3.6 -> 4.758992311 | W18: 100
B19: =+Tractor!C25 -> 5 | C19: =+Tractor!D25 -> 5.5 | D19: 11.6718588 | E19: =+IF(AND(F19>0,Luisto($F$12,T19)<100),Luisto($F$12,T19),"") -> 11.47675869 | F19: =+Piste(Tractor!$C$12:$E$17,Q19,1) -> 2317.574152 | G19: =IF(F19>1000,Piste(Tractor!$C$12:$E$16,Q19,2),"") -> 11.87444067 | H19: 5.128979397 | I19: 0.547159522 | J19: 21.70197208 | K19: Slip OK! | N19: =+Tractor!E25 -> 112.1925568 | O19: 15.3064638 | P19: =+O19*Tractor!$C$7 -> 11.38800907 | Q19: 101.5041406 | R19: =+IF(F19>0,G19*Tractor!$F$5*1000/S19,0) -> 404.8987472 | S19: 24.63462837 | T19: =+IF(F19>0,O19/((Tractor!$C$6+$H$8+($I$12-1)*0.15*$O$11)*9.81/1000),0) -> 0.3451209747 | U19: =+F19/N19*2*PI()/60*Tractor!$C$7*3.6 -> 5.793935379
B20: =+Tractor!C26 -> 6 | C20: =+Tractor!D26 -> 6.7 | D20: 12.98376677 | E20: =+IF(AND(F20>0,Luisto($F$12,T20)<100),Luisto($F$12,T20),"") -> 13.87492704 | F20: =+Piste(Tractor!$C$12:$E$17,Q20,1) -> 2304.873305 | G20: =IF(F20>1000,Piste(Tractor!$C$12:$E$16,Q20,2),"") -> 13.44220138 | H20: 6.045452075 | I20: 0.6449288274 | J20: 20.8429222 | K20: Slip OK! | N20: =+Tractor!E26 -> 92.09836756 | O20: 16.61837177 | P20: =+O20*Tractor!$C$7 -> 12.3640686 | Q20: 134.2485098 | R20: =+IF(F20>0,G20*Tractor!$F$5*1000/S20,0) -> 348.4693088 | S20: 32.40299467 | T20: =+IF(F20>0,O20/((Tractor!$C$6+$H$8+($I$12-1)*0.15*$O$11)*9.81/1000),0) -> 0.3747010895 | U20: =+F20/N20*2*PI()/60*Tractor!$C$7*3.6 -> 7.019386884
B21: =+Tractor!C27 -> 7 | C21: =+Tractor!D27 -> 8 | D21: 14.6962368 | E21: =+IF(AND(F21>0,Luisto($F$12,T21)<100),Luisto($F$12,T21),"") -> 17.77479829 | F21: =+Piste(Tractor!$C$12:$E$17,Q21,1) -> 2288.362747 | G21: =IF(F21>1000,Piste(Tractor!$C$12:$E$16,Q21,2),"") -> 15.48022342 | H21: 6.842221398 | I21: 0.7299281788 | J21: 21.20787205 | K21: Slip OK! | N21: =+Tractor!E27 -> 77.13238283 | O21: 18.3308418 | P21: =+O21*Tractor!$C$7 -> 13.6381463 | Q21: 176.8147929 | R21: =+IF(F21>0,G21*Tractor!$F$5*1000/S21,0) -> 306.8911938 | S21: 42.37132878 | T21: =+IF(F21>0,O21/((Tractor!$C$6+$H$8+($I$12-1)*0.15*$O$11)*9.81/1000),0) -> 0.4133128377 | U21: =+F21/N21*2*PI()/60*Tractor!$C$7*3.6 -> 8.32131908
B22: =+Tractor!C28 -> 8 | C22: =+Tractor!D28 -> 8.7 | D22: 15.74379173 | E22: =+IF(AND(F22>0,Luisto($F$12,T22)<100),Luisto($F$12,T22),"") -> 20.68283203 | F22: =+Piste(Tractor!$C$12:$E$17,Q22,1) -> 2278.099516 | G22: =IF(F22>1000,Piste(Tractor!$C$12:$E$16,Q22,2),"") -> 16.74709096 | H22: 7.145563169 | I22: 0.7622886789 | J22: 21.96948666 | K22: Rut deformation danger! | N22: =+Tractor!E28 -> 70.92632904 | O22: 19.37839673 | P22: =+O22*Tractor!$C$7 -> 14.41752717 | Q22: 203.2746846 | R22: =+IF(F22>0,G22*Tractor!$F$5*1000/S22,0) -> 290.0908693 | S22: 48.49362008 | T22: =+IF(F22>0,O22/((Tractor!$C$6+$H$8+($I$12-1)*0.15*$O$11)*9.81/1000),0) -> 0.4369324786 | U22: =+F22/N22*2*PI()/60*Tractor!$C$7*3.6 -> 9.008848087
B23: =+Tractor!C29 -> 9 | C23: =+Tractor!D29 -> 9.6 | D23: 17.21968819 | E23: =+IF(AND(F23>0,Luisto($F$12,T23)<100),Luisto($F$12,T23),"") -> 25.60488887 | F23: =+Piste(Tractor!$C$12:$E$17,Q23,1) -> 2230.671148 | G23: =IF(F23>1000,Piste(Tractor!$C$12:$E$16,Q23,2),"") -> 18.24621538 | H23: 7.241499402 | I23: 0.7725231562 | J23: 23.6189883 | K23: Rut deformation danger! | N23: =+Tractor!E29 -> 64.27698569 | O23: 20.85429319 | P23: =+O23*Tractor!$C$7 -> 15.51559413 | Q23: 241.3864615 | R23: =+IF(F23>0,G23*Tractor!$F$5*1000/S23,0) -> 271.8159934 | S23: 56.38675168 | T23: =+IF(F23>0,O23/((Tractor!$C$6+$H$8+($I$12-1)*0.15*$O$11)*9.81/1000),0) -> 0.4702101078 | U23: =+F23/N23*2*PI()/60*Tractor!$C$7*3.6 -> 9.733837736
B24: =+Tractor!C30 -> 10 | C24: =+Tractor!D30 -> 10.5 | D24: 18.8407548 | E24: =+IF(AND(F24>0,Luisto($F$12,T24)<100),Luisto($F$12,T24),"") -> 32.37092325 | F24: =+Piste(Tractor!$C$12:$E$17,Q24,1) -> 2028.779159 | G24: =IF(F24>1000,Piste(Tractor!$C$12:$E$16,Q24,2),"") -> 18.11511664 | H24: 6.548394752 | I24: 0.6985827521 | J24: 25.93123947 | K24: High Slip! | N24: =+Tractor!E30 -> 58.76752978 | O24: 22.4753598 | P24: =+O24*Tractor!$C$7 -> 16.72166769 | Q24: 284.5392303 | R24: =+IF(F24>0,G24*Tractor!$F$5*1000/S24,0) -> 251.7183495 | S24: 60.45128615 | T24: =+IF(F24>0,O24/((Tractor!$C$6+$H$8+($I$12-1)*0.15*$O$11)*9.81/1000),0) -> 0.5067609464 | U24: =+F24/N24*2*PI()/60*Tractor!$C$7*3.6 -> 9.682809623
A25: Engine stopped | B25: =+Tractor!C31 -> 11 | C25: =+Tractor!D31 -> 14 | D25: 26.5249152 | E25: =+IF(AND(F25>0,Luisto($F$12,T25)<100),Luisto($F$12,T25),"") ->  | F25: =+Piste(Tractor!$C$12:$E$17,Q25,1) -> 0 | G25: =IF(F25>1000,Piste(Tractor!$C$12:$E$16,Q25,2),"") ->  | N25: =+Tractor!E31 -> 44.07564733 | O25: 30.1595202 | P25: =+O25*Tractor!$C$7 -> 22.43868303 | Q25: 509.0948038 | R25: =+IF(F25>0,G25*Tractor!$F$5*1000/S25,0) -> 0 | S25: 0 | T25: =+IF(F25>0,O25/((Tractor!$C$6+$H$8+($I$12-1)*0.15*$O$11)*9.81/1000),0) -> 0 | U25: =+F25/N25*2*PI()/60*Tractor!$C$7*3.6 -> 0
A26: Engine stopped | B26: =+Tractor!C32 -> 12 | C26: =+Tractor!D32 -> 16.9 | D26: 34.55497483 | E26: =+IF(AND(F26>0,Luisto($F$12,T26)<100),Luisto($F$12,T26),"") ->  | F26: =+Piste(Tractor!$C$12:$E$17,Q26,1) -> 0 | G26: =IF(F26>1000,Piste(Tractor!$C$12:$E$16,Q26,2),"") ->  | N26: =+Tractor!E32 -> 36.51237057 | O26: 38.18957983 | P26: =+O26*Tractor!$C$7 -> 28.4130474 | Q26: 778.1759155 | R26: =+IF(F26>0,G26*Tractor!$F$5*1000/S26,0) -> 0 | S26: 0 | T26: =+IF(F26>0,O26/((Tractor!$C$6+$H$8+($I$12-1)*0.15*$O$11)*9.81/1000),0) -> 0 | U26: =+F26/N26*2*PI()/60*Tractor!$C$7*3.6 -> 0

Sheet S-tine harrow
B1: S-tine harrow
C3: =+C9 -> 4.1 | D3: =+D6 -> 10 | E3: =+E6 -> 7 | G3: =+G6 -> 2 | H3: =+H6 -> 0
B4: Soil type | C4: Workin width m | D4: Row spacing cm | E4: Working depth cm | F4: Soil traficability | G4: Slope ˚ | H4: Extra ballast kg | L4: Tuloksia
L5: f | N5: =+IF(F9=1,0.15,IF(F9=2,0.1,0.07)) -> 0.1
B6: Soft soil | C6: 41 | D6: 10 | E6: 7 | F6: Pehmeä | G6: 2 | H6: 0 | L6: Tr kulkuvastus | N6: =+Tractor!C6*9.81/1000*N5 -> 3.634605 | O6: kN
B7: Hard soil | F7: Normaali | L7: Tr mäkivastus | N7: =+Tractor!C6*9.81/1000*SIN(RADIANS(G6)) -> 1.268458852 | O7: kN
F8: Kova | L8: Työleveys | N8: =+C9 -> 4.1 | O8: m
B9: 2 | C9: =+C6/10 -> 4.1 | F9: 2
B11: Gear | C11: Nom. speed. km/h | D11: Draft kN | E11: Wheel slip % | F11: Engine 1/min | G11: Consumption l/h | H11: Driving speed km/h | I11: Work rate ha/h | J11: Consumption l/ha | T11: Vetohyötysuhde | U11: Kehän. km/h | V11: Välityssuhde | W11: Kehävoima | X11: Akselimomentti | Y11: Moottorimom. | Z11: PA g/kWh | AA11: P kW | AB11: μ
A12: =+IF(F12=0,"Engine stopped!"," ") ->  | B12: =+Tractor!C21 -> 1 | C12: =+Tractor!D21 -> 2.1 | D12: =+spiikki($B$9,C12,+$C$9/($D$6/100),$E$6,$C$9) -> 9.602569 | E12: =+IF(AND(F12>0,Luisto($F$9,AB12)<100),Luisto($F$9,AB12),"") -> 16.22562026 | F12: =+Piste(Tractor!$C$12:$E$17,Y12,1) -> 2343.996105 | G12: =IF(F12>1000,Piste(Tractor!$C$12:$E$16,Y12,2),"") -> 8.448560939 | H12: =+IF(AND(E12<100,F12>0),U12*(1-E12/100),"") -> 1.874410552 | I12: =+IF(ISNUMBER(H12),H12*$N$8/10,"") -> 0.7685083265 | J12: =+IF(ISNUMBER(I12),G12/I12,"") -> 10.993454 | K12: =+IF(ISNUMBER(E12),LOOKUP(E12,$Q$12:$Q$15,$R$12:$R$15),"") -> Slip OK! | Q12: 0 | R12: Slip OK! | T12: =+(1-E12/100)*(1-$N$5/AB12)*100 -> 62.7834459 | U12: =+F12/V12*2*PI()/60*Tractor!$C$7*3.6 -> 2.237450827 | V12: =+Tractor!E21 -> 293.8376489 | W12: =+D12+$N$6+$N$7 -> 14.50563285 | X12: =+W12*Tractor!$C$7 -> 10.79219084 | Y12: =+X12/V12*1000 -> 36.72841409 | Z12: =+IF(F12>0,G12*Tractor!$F$5*1000/AA12,0) -> 787.1805364 | AA12: =+Y12*(F12*2*PI()/60)/1000 -> 9.015455617 | AB12: =+IF(F12>0,W12/((Tractor!$C$6+$H$6)*9.81/1000),0) -> 0.3990979172
A13: =+IF(F13=0,"Engine stopped!"," ") ->  | B13: =+Tractor!C22 -> 2 | C13: =+Tractor!D22 -> 2.6 | D13: 10.100514 | E13: =+IF(AND(F13>0,Luisto($F$9,AB13)<100),Luisto($F$9,AB13),"") -> 17.71619312 | F13: =+Piste(Tractor!$C$12:$E$17,Y13,1) -> 2339.224876 | G13: =IF(F13>1000,Piste(Tractor!$C$12:$E$16,Y13,2),"") -> 9.135617831 | H13: =+IF(AND(E13<100,F13>0),U13*(1-E13/100),"") -> 2.274767512 | I13: 0.93265468 | J13: =+IF(ISNUMBER(I13),G13/I13,"") -> 9.795284393 | K13: =+IF(ISNUMBER(E13),LOOKUP(E13,$Q$12:$Q$15,$R$12:$R$15),"") -> Slip OK! | Q13: 20 | R13: Rut deformation danger! | T13: 62.35061902 | U13: =+F13/V13*2*PI()/60*Tractor!$C$7*3.6 -> 2.76453849 | V13: =+Tractor!E22 -> 237.3304087 | W13: 15.00357785 | X13: =+W13*Tractor!$C$7 -> 11.16266192 | Y13: 47.03426747 | Z13: =+IF(F13>0,G13*Tractor!$F$5*1000/AA13,0) -> 666.0429464 | AA13: 11.52165791 | AB13: =+IF(F13>0,W13/((Tractor!$C$6+$H$6)*9.81/1000),0) -> 0.4127980304
B14: =+Tractor!C23 -> 3 | C14: =+Tractor!D23 -> 3.7 | D14: 11.195993 | E14: =+IF(AND(F14>0,Luisto($F$9,AB14)<100),Luisto($F$9,AB14),"") -> 21.49524609 | F14: =+Piste(Tractor!$C$12:$E$17,Y14,1) -> 2329.08781 | G14: =IF(F14>1000,Piste(Tractor!$C$12:$E$16,Y14,2),"") -> 10.45322342 | H14: 3.075111463 | I14: 1.2607957 | J14: 8.290973248 | K14: Rut deformation danger! | Q14: 30 | R14: High Slip! | T14: 60.78112117 | U14: =+F14/V14*2*PI()/60*Tractor!$C$7*3.6 -> 3.917102226 | V14: =+Tractor!E23 -> 166.7727196 | W14: 16.09905685 | X14: =+W14*Tractor!$C$7 -> 11.9776983 | Y14: 71.82048913 | Z14: =+IF(F14>0,G14*Tractor!$F$5*1000/AA14,0) -> 501.2641899 | AA14: 17.5171254 | AB14: =+IF(F14>0,W14/((Tractor!$C$6+$H$6)*9.81/1000),0) -> 0.4429382795
B15: =+Tractor!C24 -> 4 | C15: =+Tractor!D24 -> 4.5 | D15: 11.992705 | E15: =+IF(AND(F15>0,Luisto($F$9,AB15)<100),Luisto($F$9,AB15),"") -> 24.74075671 | F15: =+Piste(Tractor!$C$12:$E$17,Y15,1) -> 2321.387833 | G15: =IF(F15>1000,Piste(Tractor!$C$12:$E$16,Y15,2),"") -> 11.40368937 | H15: 3.573529603 | I15: 1.465147137 | J15: 7.783306588 | K15: Rut deformation danger! | Q15: 100 | T15: 59.06953187 | U15: =+F15/V15*2*PI()/60*Tractor!$C$7*3.6 -> 4.748293295 | V15: =+Tractor!E24 -> 137.1242361 | W15: 16.89576885 | X15: =+W15*Tractor!$C$7 -> 12.57045203 | Y15: 91.67199307 | Z15: =+IF(F15>0,G15*Tractor!$F$5*1000/AA15,0) -> 429.8447921 | AA15: 22.28501832 | AB15: =+IF(F15>0,W15/((Tractor!$C$6+$H$6)*9.81/1000),0) -> 0.4648584606
B16: =+Tractor!C25 -> 5 | C16: =+Tractor!D25 -> 5.5 | D16: 12.988595 | E16: =+IF(AND(F16>0,Luisto($F$9,AB16)<100),Luisto($F$9,AB16),"") -> 29.49518841 | F16: =+Piste(Tractor!$C$12:$E$17,Y16,1) -> 2310.92451 | G16: =IF(F16>1000,Piste(Tractor!$C$12:$E$16,Y16,2),"") -> 12.6952558 | H16: 4.073282429 | I16: 1.670045796 | J16: 7.601741122 | K16: Rut deformation danger! | T16: 56.18209602 | U16: =+F16/V16*2*PI()/60*Tractor!$C$7*3.6 -> 5.777311275 | V16: =+Tractor!E25 -> 112.1925568 | W16: 17.89165885 | X16: =+W16*Tractor!$C$7 -> 13.31139419 | Y16: 118.6477478 | Z16: =+IF(F16>0,G16*Tractor!$F$5*1000/AA16,0) -> 371.404248 | AA16: 28.71268956 | AB16: =+IF(F16>0,W16/((Tractor!$C$6+$H$6)*9.81/1000),0) -> 0.492258687
B17: =+Tractor!C26 -> 6 | C17: =+Tractor!D26 -> 6.7 | D17: 14.183663 | E17: =+IF(AND(F17>0,Luisto($F$9,AB17)<100),Luisto($F$9,AB17),"") -> 36.42143142 | F17: =+Piste(Tractor!$C$12:$E$17,Y17,1) -> 2297.13894 | G17: =IF(F17>1000,Piste(Tractor!$C$12:$E$16,Y17,2),"") -> 14.39691207 | H17: 4.44784999 | I17: 1.823618496 | J17: 7.894695133 | K17: High Slip! | T17: 51.47156956 | U17: =+F17/V17*2*PI()/60*Tractor!$C$7*3.6 -> 6.995832227 | V17: =+Tractor!E26 -> 92.09836756 | W17: 19.08672685 | X17: =+W17*Tractor!$C$7 -> 14.20052478 | Y17: 154.1886697 | Z17: =+IF(F17>0,G17*Tractor!$F$5*1000/AA17,0) -> 326.0470647 | AA17: 37.09098301 | AB17: =+IF(F17>0,W17/((Tractor!$C$6+$H$6)*9.81/1000),0) -> 0.5251389588
B18: =+Tractor!C27 -> 7 | C18: =+Tractor!D27 -> 8 | D18: 15.47832 | E18: =+IF(AND(F18>0,Luisto($F$9,AB18)<100),Luisto($F$9,AB18),"") -> 45.77166021 | F18: =+Piste(Tractor!$C$12:$E$17,Y18,1) -> 2280.690883 | G18: =IF(F18>1000,Piste(Tractor!$C$12:$E$16,Y18,2),"") -> 16.42721914 | H18: 4.497384733 | I18: 1.84392774 | J18: 8.908819351 | K18: High Slip! | T18: 44.55781906 | U18: =+F18/V18*2*PI()/60*Tractor!$C$7*3.6 -> 8.293421393 | V18: =+Tractor!E27 -> 77.13238283 | W18: 20.38138385 | X18: =+W18*Tractor!$C$7 -> 15.16374959 | Y18: 196.5938174 | Z18: =+IF(F18>0,G18*Tractor!$F$5*1000/AA18,0) -> 293.8856878 | AA18: 46.95316801 | AB18: =+IF(F18>0,W18/((Tractor!$C$6+$H$6)*9.81/1000),0) -> 0.5607592531
B19: =+Tractor!C28 -> 8 | C19: =+Tractor!D28 -> 8.7 | D19: 16.175443 | E19: =+IF(AND(F19>0,Luisto($F$9,AB19)<100),Luisto($F$9,AB19),"") -> 51.76466439 | F19: =+Piste(Tractor!$C$12:$E$17,Y19,1) -> 2268.107518 | G19: =IF(F19>1000,Piste(Tractor!$C$12:$E$16,Y19,2),"") -> 17.57028092 | H19: 4.32638849 | I19: 1.773819281 | J19: 9.905338786 | K19: High Slip! | T19: 39.91802959 | U19: =+F19/V19*2*PI()/60*Tractor!$C$7*3.6 -> 8.969334276 | V19: =+Tractor!E28 -> 70.92632904 | W19: 21.07850685 | X19: =+W19*Tractor!$C$7 -> 15.6824091 | Y19: 221.1084277 | Z19: =+IF(F19>0,G19*Tractor!$F$5*1000/AA19,0) -> 281.0350186 | AA19: 52.516715 | AB19: =+IF(F19>0,W19/((Tractor!$C$6+$H$6)*9.81/1000),0) -> 0.5799394116
B20: =+Tractor!C29 -> 9 | C20: =+Tractor!D29 -> 9.6 | D20: 17.071744 | E20: =+IF(AND(F20>0,Luisto($F$9,AB20)<100),Luisto($F$9,AB20),"") -> 60.63701014 | F20: =+Piste(Tractor!$C$12:$E$17,Y20,1) -> 2206.726808 | G20: =IF(F20>1000,Piste(Tractor!$C$12:$E$16,Y20,2),"") -> 18.67854374 | H20: 3.79040138 | I20: 1.554064566 | J20: 12.01915554 | K20: High Slip! | T20: 32.85240188 | U20: =+F20/V20*2*PI()/60*Tractor!$C$7*3.6 -> 9.629353345 | V20: =+Tractor!E29 -> 64.27698569 | W20: 21.97480785 | X20: =+W20*Tractor!$C$7 -> 16.34925704 | Y20: 254.3563122 | Z20: =+IF(F20>0,G20*Tractor!$F$5*1000/AA20,0) -> 266.9331989 | AA20: 58.77866375 | AB20: =+IF(F20>0,W20/((Tractor!$C$6+$H$6)*9.81/1000),0) -> 0.6045996154
B21: =+Tractor!C30 -> 10 | C21: =+Tractor!D30 -> 10.5 | D21: 17.968045 | E21: =+IF(AND(F21>0,Luisto($F$9,AB21)<100),Luisto($F$9,AB21),"") -> 71.03005579 | F21: =+Piste(Tractor!$C$12:$E$17,Y21,1) -> 1989.011319 | G21: =IF(F21>1000,Piste(Tractor!$C$12:$E$16,Y21,2),"") -> 17.92857358 | H21: 2.750119287 | I21: =+IF(ISNUMBER(H21),H21*$N$8/10,"") -> 1.127548907 | J21: 15.90048419 | K21: High Slip! | T21: 24.36613139 | U21: =+F21/V21*2*PI()/60*Tractor!$C$7*3.6 -> 9.49300857 | V21: =+Tractor!E30 -> 58.76752978 | W21: 22.87110885 | X21: =+W21*Tractor!$C$7 -> 17.01610499 | Y21: 289.549434 | Z21: =+IF(F21>0,G21*Tractor!$F$5*1000/AA21,0) -> 249.7102853 | AA21: 60.30989787 | AB21: =+IF(F21>0,W21/((Tractor!$C$6+$H$6)*9.81/1000),0) -> 0.6292598192
A22: Engine stopped! | B22: =+Tractor!C31 -> 11 | C22: =+Tractor!D31 -> 14 | D22: 21.45366 | E22: =+IF(AND(F22>0,Luisto($F$9,AB22)<100),Luisto($F$9,AB22),"") ->  | F22: =+Piste(Tractor!$C$12:$E$17,Y22,1) -> 0 | G22: =IF(F22>1000,Piste(Tractor!$C$12:$E$16,Y22,2),"") ->  | I22: =+IF(ISNUMBER(H22),H22*$N$8/10,"") ->  | U22: =+F22/V22*2*PI()/60*Tractor!$C$7*3.6 -> 0 | V22: =+Tractor!E31 -> 44.07564733 | W22: 26.35672385 | X22: =+W22*Tractor!$C$7 -> 19.60940255 | Y22: 444.9033363 | Z22: =+IF(F22>0,G22*Tractor!$F$5*1000/AA22,0) -> 0 | AA22: 0 | AB22: =+IF(F22>0,W22/((Tractor!$C$6+$H$6)*9.81/1000),0) -> 0
A23: Engine stopped! | B23: =+Tractor!C32 -> 12 | C23: =+Tractor!D32 -> 16.9 | D23: 24.341741 | E23: =+IF(AND(F23>0,Luisto($F$9,AB23)<100),Luisto($F$9,AB23),"") ->  | F23: =+Piste(Tractor!$C$12:$E$17,Y23,1) -> 0 | G23: =IF(F23>1000,Piste(Tractor!$C$12:$E$16,Y23,2),"") ->  | U23: =+F23/V23*2*PI()/60*Tractor!$C$7*3.6 -> 0 | V23: =+Tractor!E32 -> 36.51237057 | W23: 29.24480485 | X23: =+W23*Tractor!$C$7 -> 21.75813481 | Y23: 595.9113164 | Z23: =+IF(F23>0,G23*Tractor!$F$5*1000/AA23,0) -> 0 | AA23: 0 | AB23: =+IF(F23>0,W23/((Tractor!$C$6+$H$6)*9.81/1000),0) -> 0

Sheet Instructions
A2: First fill in the tractor information. Only green cells are in use. The program calculates the other needed values.
A3: You can find the tractor information from test reporsts or from magazines. Altogether five points from the power curve are needed:
A4: - Mmax = maximum torque of the engine
A5: - Pmax/P80% = maximum power point if it differs from nomimal power, otherwise a point between maximum torque and nomimal power.
A6: - Prated = rated (nominal) power point
A7: - P85% = point, where torque is 85% from torque at nominal power or a point near this
A8: - P25% = point, where torque is 25% from torque at nominal power or a point near this
A9: - P0 = high idle, maximum speed without load
A11: Example. CASE IH CX 90 DIESEL
A12: Engine points picked from the report
B13: M Nm | C13: r/min | D13: l/h | F13: Remark
A14: Mmax | B14: 319 | C14: 1400 | D14: 14.1 | F14: Fuel consumption estimated using lowest specific figure of the report
A15: Pmax | B15: 289 | C15: 2000 | D15: 18
A16: Prated | B16: 258 | C16: 2200 | D16: 18.8
A17: P85% | B17: 219 | C17: 2272 | D17: 17.5
A18: P25% | B18: 54 | C18: 2336 | D18: 9.6
A19: P0 | B19: 0 | C19: 2361 | D19: 6
B23: Power calculators
B24: n | C24: 2336 | D24: 1/min | F24: n | G24: 1400 | H24: 1/min | J24: n | K24: 2336 | L24: 1/min
B25: P | C25: 13.3 | D25: kW | F25: M | G25: 319 | H25: Nm | J25: M | K25: 54 | L25: Nm
B26: Q | C26: 18.8 | D26: l/h | F26: Q | G26: 16 | H26: l/h | J26: Qspec | K26: 600 | L26: g/kWh
B27: M | C27: =+C25*1000/(C24*2*PI()/60) -> 54.3688547 | D27: Nm | F27: P | G27: 55 | H27: kW | J27: P | K27: =+K24*K25*PI()/30/1000 -> 13.20976879 | L27: kW
B28: Qspec | C28: =+IF(C26*0.835/C25*1000<190,"Virhe arvoissa",C26*0.835/C25*1000) -> 1180.300752 | D28: g/kWh | F28: Qspec | G28: =+IF(G26*0.835/G27*1000<190,"--",G26*0.835/G27*1000) -> 242.9090909 | H28: g/kWh | J28: Q | K28: =+K26/1000/0.83*K27 -> 9.54923045 | L28: l/h
B30: n | C30: 2336 | D30: 1/min
B31: P | C31: 13.3 | D31: kW
B32: Qspec | C32: 600 | D32: g/kWh
B33: M | C33: =+C31*1000/(C30*PI()/30) -> 54.3688547 | D33: Nm
B34: Q | C34: =+C31*C32/1000/0.83 -> 9.614457831 | D34: l/h
B37: Tractor test results | O37: http://tractortestlab.unl.edu/IH/Ih90.pdf
B38: http://www2.oecd.org/agr-coddb/index_en.asp
B39: http://tractortestlab.unl.edu/testreports.htm
A55: Ohjelma on elävää elämää yksinkertaisempi. Se ei ota huomioon esimerkiksi lisäpainojen aiheuttamaa mahdollista renkaiden uppoumaa. Arvot myöskin lasketaan vain nelivetoiselle traktorille
A57: Kommentit ja kysymykset | D57: jukka.ahokas@helsinki.fi
A59: Lukitussalasana | C59: akatemia

Sheet Information
